bitfinex-derivatives/quotes_SOLF0:USTF0_20260220
["timestamp","ask_amount","ask_price","bid_price","bid_amount"]
[1771606557411,3.6015601,84.3,84.27,10.682]
[1771606558709,3.6015601,84.3,84.276,10.6812]
[1771606559012,29.08696765,84.31,84.262,25.44387755]
[1771606560307,3.6015601,84.3,84.269,10.6821]
[1771606560714,3.6015601,84.3,84.241,25.44387755]
[1771606560907,3.6015601,84.3,84.255,25.44387755]
[1771606561302,3.6015601,84.32,84.261,25.44387755]
[1771606561515,25.48540755,84.321,84.28,29.04543765]
[1771606561716,3.6015601,84.33,84.28,29.04543765]
[1771606562107,25.48540755,84.335,84.294,10.6789]
[1771606563119,3.6015601,84.35,84.301,25.44387755]
[1771606563716,10.6721,84.349,84.308,10.6772]
[1771606564410,25.48540755,84.339,84.298,10.6784]
[1771606564913,29.08696765,84.33,84.285,25.44387755]
[1771606565118,29.08696765,84.33,84.291,10.6793]
[1771606566020,25.48540755,84.33,84.291,10.6793]
[1771606566425,23.28671159,84.329,84.282,10.6804]
[1771606567720,25.19479206,84.323,84.273,10.6816]
[1771606567922,25.19479206,84.323,84.255,24.51109346]
[1771606568823,35.87049206,84.32,84.279,10.6809]
[1771606569026,25.19479206,84.319,84.279,10.6809]
[1771606570918,21.3437,84.351,84.288,10.6797]
[1771606570919,25.19479206,84.334,84.288,10.6797]
[1771606571120,25.19479206,84.334,84.283,24.51109346]
[1771606571320,10.6741,84.333,84.283,24.51109346]
[1771606571520,25.19479206,84.334,84.283,24.51109346]
[1771606571916,35.86969206,84.327,84.283,24.51109346]
[1771606572714,35.86969206,84.327,84.291,10.6793]
[1771606573223,25.19479206,84.321,84.269,24.51109346]
[1771606573922,35.87049206,84.321,84.276,10.6812]
[1771606574221,25.19479206,84.321,84.269,24.51109346]
[1771606574814,25.19479206,84.315,84.269,24.51109346]
[1771606575221,25.19479206,84.315,84.277,10.681]
[1771606578423,25.19479206,84.326,84.284,10.6802]
[1771606580728,25.19479206,84.324,84.277,10.6811]
[1771606581734,25.19479206,84.322,84.277,10.6811]
[1771606581928,25.19479206,84.322,84.283,10.6803]
[1771606584731,25.19479206,84.344,84.3,10.6782]
[1771606584932,8.26752713,84.343,84.301,24.51109346]
[1771606585140,25.19479206,84.356,84.301,24.51109346]
[1771606585435,25.19479206,84.4,84.341,24.51109346]
[1771606585627,25.19479206,84.426,84.341,24.51109346]
[1771606585827,25.19479206,84.424,84.341,24.51109346]
[1771606586132,25.19479206,84.422,84.341,24.51109346]
[1771606586331,8.28142686,84.421,84.361,24.51109346]
[1771606586534,25.19479206,84.437,84.38,10.6681]
[1771606586731,25.19479206,84.435,84.38,10.6681]
[1771606586937,25.19479206,84.433,84.38,10.6681]
[1771606587131,25.19479206,84.431,84.378,24.51109346]
[1771606587436,25.19479206,84.409,84.341,24.51109346]
[1771606587736,25.19479206,84.39,84.339,10.6733]
[1771606587928,8.2526778,84.407,84.321,24.51109346]
[1771606588128,25.19479206,84.409,84.321,24.51109346]
[1771606588334,25.19479206,84.409,84.348,24.51109346]
[1771606588541,25.19479206,84.407,84.348,24.51109346]
[1771606588840,25.19479206,84.405,84.348,24.51109346]
[1771606589134,25.19479206,84.405,84.35,10.6718]
[1771606589337,25.19479206,84.403,84.348,24.51109346]
[1771606590042,25.19479206,84.403,84.321,24.51109346]
[1771606591340,25.19479206,84.392,84.321,24.51109346]
[1771606593036,25.19479206,84.392,84.341,10.673]
[1771606595242,25.19479206,84.409,84.342,24.51109346]
[1771606596041,25.19479206,84.409,84.358,10.6709]
[1771606596543,25.19479206,84.409,84.342,24.51109346]
[1771606596948,25.19479206,84.397,84.342,24.51109346]
[1771606597646,24.24402614,84.391,84.343,10.6727]
[1771606597848,24.24402614,84.407,84.343,22.49632245]
[1771606598648,24.24402614,84.419,84.37,10.6693]
[1771606599051,24.24402614,84.439,84.361,22.49632245]
[1771606599545,24.24402614,84.439,84.378,22.49632245]
[1771606599950,10.6617,84.431,84.378,22.49632245]
[1771606600146,24.24402614,84.43,84.378,22.49632245]
[1771606601654,24.24402614,84.43,84.383,10.6677]
[1771606602454,18.28579295,84.457,84.375,10.6687]
[1771606602455,24.24402614,84.426,84.375,10.6687]
[1771606603152,24.24402614,84.417,84.367,10.6697]
[1771606603351,24.24402614,84.417,84.363,22.49632245]
[1771606604257,24.24402614,84.415,84.363,22.49632245]
[1771606605051,24.24402614,84.415,84.373,10.6689]
[1771606605953,10.6638,84.414,84.373,10.6689]
[1771606606258,24.24402614,84.413,84.348,22.49632245]
[1771606606957,24.24402614,84.405,84.358,10.6709]
[1771606607952,24.24402614,84.393,84.349,10.672]
[1771606608253,24.24402614,84.393,84.332,22.49632245]
[1771606608652,24.24402614,84.386,84.332,22.49632245]
[1771606611659,10.6675,84.385,84.338,10.6734]
[1771606611855,10.6675,84.385,84.307,21.3546]
[1771606611856,3.59591264,84.4,84.341,22.49632245]
[1771606612058,3.59591264,84.4,84.35,3.59591264]
[1771606612560,24.24402614,84.416,84.372,10.669]
[1771606612749,24.24402614,84.416,84.364,22.49632245]
[1771606612954,3.59591264,84.41,84.364,22.49632245]
[1771606613258,24.24402614,84.416,84.364,22.49632245]
[1771606613760,24.24402614,84.414,84.365,10.67]
[1771606614063,8.2399903,84.453,84.36,3.59591264]
[1771606614064,24.24402614,84.447,84.381,22.49632245]
[1771606614459,10.6599,84.446,84.399,10.6656]
[1771606615455,34.90392614,84.446,84.405,10.6649]
[1771606615659,24.24402614,84.445,84.405,10.6649]
[1771606615854,24.24402614,84.442,84.381,22.49632245]
[1771606616351,24.24402614,84.442,84.405,10.6649]
[1771606618250,24.24402614,84.442,84.411,10.6641]
[1771606618451,24.24402614,84.442,84.381,22.49632245]
[1771606619758,24.24402614,84.442,84.404,10.665]
[1771606621463,24.24402614,84.441,84.404,10.665]
[1771606622057,24.24402614,84.441,84.396,10.666]
[1771606622666,24.24402614,84.441,84.381,22.49632245]
[1771606623166,24.24402614,84.441,84.406,10.6648]
[1771606623563,24.24402614,84.455,84.412,10.664]
[1771606625766,34.90282614,84.454,84.407,22.49632245]
[1771606626266,24.24402614,84.454,84.417,10.6633]
[1771606626473,18.28579295,84.457,84.418,22.69781049]
[1771606627777,18.28579295,84.457,84.427,34.14598497]
[1771606628181,18.28579295,84.457,84.401,23.48388497]
[1771606628877,18.28579295,84.457,84.421,10.6628]
[1771606629073,18.28579295,84.457,84.422,23.48388497]
[1771606629278,9.295e-05,84.457,84.422,23.48388497]
[1771606629976,9.295e-05,84.457,84.444,34.14378497]
[1771606630172,9.295e-05,84.457,84.445,23.48388497]
[1771606631275,9.295e-05,84.457,84.438,34.14458497]
[1771606631471,9.295e-05,84.457,84.438,23.48388497]
[1771606633478,9.295e-05,84.457,84.423,23.48388497]
[1771606633979,9.295e-05,84.457,84.425,10.6624]
[1771606634677,9.295e-05,84.457,84.423,23.48388497]
[1771606634678,9.295e-05,84.457,84.432,34.14538497]
[1771606634874,9.295e-05,84.457,84.432,23.48388497]
[1771606635878,9.295e-05,84.457,84.401,23.48388497]
[1771606637185,9.295e-05,84.457,84.432,23.48388497]
[1771606638678,9.295e-05,84.457,84.446,10.6597]
[1771606639381,22.7724516,84.501,84.464,0.49990705]
[1771606639584,22.7724516,84.501,84.446,10.6597]
[1771606640381,22.7724516,84.532,84.468,23.48388497]
[1771606640784,22.7724516,84.52,84.468,23.48388497]
[1771606641184,22.7724516,84.52,84.469,10.6568]
[1771606641379,33.4230516,84.519,84.469,10.6568]
[1771606641580,22.7724516,84.518,84.468,23.48388497]
[1771606641788,22.7724516,84.518,84.441,23.48388497]
[1771606641980,22.7724516,84.508,84.45,10.6592]
[1771606642182,22.7724516,84.508,84.441,23.48388497]
[1771606642488,22.7724516,84.504,84.457,10.6583]
[1771606642886,22.7724516,84.504,84.441,23.48388497]
[1771606643082,22.7724516,84.504,84.456,10.6584]
[1771606643794,22.7724516,84.502,84.456,10.6584]
[1771606644490,22.7724516,84.502,84.464,10.6575]
[1771606644687,22.7724516,84.517,84.464,10.6575]
[1771606645192,10.6525,84.504,84.456,23.48388497]
[1771606646791,10.6525,84.504,84.458,10.6582]
[1771606646991,22.7724516,84.5,84.458,10.6582]
[1771606647890,10.6531,84.499,84.458,10.6582]
[1771606648092,22.7724516,84.498,84.447,10.6596]
[1771606648488,22.7724516,84.498,84.441,23.48388497]
[1771606649388,10.6534,84.497,84.454,10.6587]
[1771606651599,10.6541,84.491,84.447,10.6596]
[1771606651801,22.7724516,84.496,84.441,23.48388497]
[1771606652899,22.7724516,84.496,84.461,10.6578]
[1771606653095,22.7724516,84.496,84.441,23.48388497]
[1771606653300,10.6522,84.507,84.455,23.48388497]
[1771606653896,33.4246516,84.507,84.455,23.48388497]
[1771606654096,10.6525,84.504,84.467,10.657]
[1771606655298,22.7724516,84.506,84.467,10.657]
[1771606656906,3.586412,84.5,84.467,10.657]
[1771606657303,26.72781543,84.5,84.459,10.6581]
[1771606658601,26.72781543,84.53,84.48,26.84074394]
[1771606658796,23.14140343,84.528,84.48,26.84074394]
[1771606659110,8.24116528,84.527,84.48,26.84074394]
[1771606659410,33.79170343,84.522,84.48,26.84074394]
[1771606659707,8.24116528,84.521,84.48,23.25433194]
[1771606659907,23.14140343,84.511,84.465,23.25433194]
[1771606660109,23.14140343,84.511,84.47,3.586412]
[1771606660509,23.14140343,84.511,84.465,23.25433194]
[1771606661408,26.72781543,84.5,84.455,23.25433194]
[1771606661610,23.14140343,84.506,84.455,23.25433194]
[1771606661815,23.14140343,84.506,84.46,26.84074394]
[1771606662011,23.14140343,84.519,84.473,23.25433194]
[1771606662216,23.14140343,84.519,84.48,3.586412]
[1771606663316,23.14140343,84.519,84.484,10.655]
[1771606664016,10.6507,84.518,84.48,3.586412]
[1771606664513,23.14140343,84.518,84.462,23.25433194]
[1771606664920,23.14140343,84.518,84.47,3.586412]
[1771606665308,23.14140343,84.514,84.474,10.6562]
[1771606665509,23.14140343,84.514,84.462,23.25433194]
[1771606665813,23.14140343,84.512,84.466,10.6571]
[1771606666122,23.14140343,84.509,84.462,23.25433194]
[1771606666321,23.14140343,84.509,84.472,10.6564]
[1771606668722,23.14140343,84.509,84.462,23.25433194]
[1771606668723,23.14140343,84.507,84.464,10.6574]
[1771606668917,8.26097867,84.506,84.464,10.6574]
[1771606669116,23.14140343,84.507,84.464,10.6574]
[1771606669316,8.26096958,84.506,84.464,10.6574]
[1771606669512,8.26096958,84.505,84.462,23.25433194]
[1771606669711,23.14140343,84.507,84.472,10.6564]
[1771606670921,10.6505,84.52,84.472,10.6564]
[1771606671118,23.14140343,84.516,84.472,10.6564]
[1771606671315,8.26820396,84.515,84.478,10.6557]
[1771606671523,8.26820396,84.514,84.478,10.6557]
[1771606671723,8.26820396,84.513,84.47,3.586412]
[1771606671920,8.26820396,84.512,84.48,3.586412]
[1771606672122,23.14140343,84.516,84.48,3.586412]
[1771606672322,8.27341775,84.515,84.48,3.586412]
[1771606672522,8.27341775,84.514,84.48,3.586412]
[1771606672723,8.27341775,84.513,84.484,10.6549]
[1771606672922,23.14140343,84.516,84.484,10.6549]
[1771606673226,8.27339167,84.515,84.484,10.6549]
[1771606673424,8.27339167,84.514,84.484,10.6549]
[1771606673622,8.27339167,84.513,84.484,10.6549]
[1771606673822,8.27339167,84.512,84.484,10.6549]
[1771606674019,23.14140343,84.516,84.484,10.6549]
[1771606674324,8.27532309,84.515,84.484,10.6549]
[1771606674526,8.27532309,84.514,84.484,10.6549]
[1771606674721,8.27532309,84.513,84.484,10.6549]
[1771606674921,8.27532309,84.512,84.484,10.6549]
[1771606675217,10.6496,84.527,84.484,10.6549]
[1771606675526,8.27637336,84.526,84.493,10.6538]
[1771606675727,8.27637336,84.525,84.493,10.6538]
[1771606676021,8.27637336,84.524,84.49,3.586412]
[1771606676217,8.27637336,84.523,84.49,3.586412]
[1771606676416,8.27637336,84.522,84.49,3.586412]
[1771606676615,8.27637336,84.521,84.48,26.84074394]
[1771606676820,8.27637336,84.52,84.48,26.84074394]
[1771606677118,8.27637336,84.519,84.48,26.84074394]
[1771606677320,8.27637336,84.518,84.481,10.6552]
[1771606677517,8.27637336,84.517,84.481,10.6552]
[1771606677712,8.27637336,84.516,84.481,10.6552]
[1771606677922,8.27637336,84.515,84.481,10.6552]
[1771606678119,23.14140343,84.521,84.481,10.6552]
[1771606678323,8.28086374,84.52,84.481,10.6552]
[1771606678625,8.28086374,84.519,84.481,10.6552]
[1771606678924,8.28086374,84.518,84.481,10.6552]
[1771606679125,8.28086374,84.517,84.482,23.25433194]
[1771606679326,23.14140343,84.55,84.491,23.25433194]
[1771606679518,26.72781543,84.55,84.491,23.25433194]
[1771606680121,33.79020343,84.534,84.494,10.6537]
[1771606680322,33.79020343,84.534,84.491,23.25433194]
[1771606680323,23.14140343,84.533,84.491,23.25433194]
[1771606680723,23.14140343,84.533,84.492,10.6539]
[1771606681626,33.78850343,84.547,84.51,3.586412]
[1771606681929,23.14140343,84.546,84.5,3.586412]
[1771606682524,23.14140343,84.546,84.5,26.84074394]
[1771606682727,23.14140343,84.546,84.51,3.586412]
[1771606683030,23.14140343,84.546,84.5,23.25433194]
[1771606683232,23.14140343,84.546,84.5,26.84074394]
[1771606683724,23.14140343,84.544,84.5,26.84074394]
[1771606685435,23.14140343,84.544,84.501,10.6528]
[1771606685919,23.14140343,84.544,84.502,23.25433194]
[1771606686120,10.6476,84.543,84.502,23.25433194]
[1771606686326,23.14140343,84.544,84.502,23.25433194]
[1771606687731,23.14140343,84.544,84.505,10.6523]
[1771606688924,10.6476,84.543,84.502,23.25433194]
[1771606689330,23.14140343,84.544,84.502,23.25433194]
[1771606690836,23.14140343,84.544,84.509,10.6518]
[1771606691436,23.14140343,84.544,84.503,21.38704853]
[1771606691833,22.36404161,84.557,84.503,21.38704853]
[1771606692036,22.36404161,84.555,84.511,21.38704853]
[1771606692232,30.52396229,84.554,84.511,21.38704853]
[1771606692437,22.36404161,84.552,84.513,10.6512]
[1771606692640,8.15992068,84.551,84.513,10.6512]
[1771606692940,22.36404161,84.552,84.513,10.6512]
[1771606692941,25.94619837,84.55,84.513,10.6512]
[1771606693340,8.15914383,84.549,84.513,10.6512]
[1771606693539,8.15914383,84.548,84.513,10.6512]
[1771606693840,8.15914383,84.547,84.513,10.6512]
[1771606694038,8.15914383,84.546,84.513,10.6512]
[1771606694240,25.94619837,84.55,84.513,10.6512]
[1771606694436,30.52297663,84.549,84.513,10.6512]
[1771606694640,22.36404161,84.547,84.513,10.6512]
[1771606695841,22.36404161,84.545,84.503,10.6525]
[1771606696042,8.15686757,84.544,84.501,21.38704853]
[1771606696337,22.36404161,84.55,84.51,24.96920529]
[1771606696643,8.15701495,84.549,84.51,24.96920529]
[1771606696942,22.36404161,84.549,84.496,21.38704853]
[1771606697143,22.36404161,84.547,84.501,21.38704853]
[1771606697331,8.15643481,84.546,84.513,10.6512]
[1771606697535,22.36404161,84.547,84.512,21.38704853]
[1771606698145,22.36404161,84.547,84.5,24.96920529]
[1771606698838,22.36404161,84.547,84.511,10.6515]
[1771606699436,22.36404161,84.547,84.518,10.6507]
[1771606699641,22.36404161,84.559,84.518,10.6507]
[1771606699842,8.15602048,84.558,84.511,21.38704853]
[1771606700037,8.15602048,84.557,84.511,21.38704853]
[1771606700238,33.00984161,84.558,84.517,10.6508]
[1771606700438,8.1555779,84.557,84.517,10.6508]
[1771606700640,22.36404161,84.571,84.535,10.6485]
[1771606700839,22.36404161,84.571,84.484,22.12985577]
[1771606700840,22.36404161,84.559,84.506,21.38704853]
[1771606701044,22.36404161,84.559,84.465,35.6]
[1771606701045,25.94619837,84.57,84.521,21.38704853]
[1771606701245,8.15530608,84.569,84.521,21.38704853]
[1771606701441,8.15530608,84.568,84.521,21.38704853]
[1771606701747,25.94619837,84.57,84.535,10.6486]
[1771606701748,8.15530608,84.567,84.535,10.6486]
[1771606701944,22.36404161,84.57,84.53,3.58215676]
[1771606702147,8.156321,84.569,84.53,24.96920529]
[1771606702448,8.156321,84.568,84.53,24.96920529]
[1771606702746,8.156321,84.567,84.53,24.96920529]
[1771606702941,22.36404161,84.57,84.53,24.96920529]
[1771606703143,8.15613279,84.569,84.541,10.6477]
[1771606703337,8.15613279,84.568,84.541,10.6477]
[1771606703541,8.15613279,84.567,84.541,10.6477]
[1771606703742,22.36404161,84.57,84.541,10.6477]
[1771606703940,8.15672684,84.569,84.532,10.6488]
[1771606704138,8.15672684,84.568,84.532,10.6488]
[1771606704343,8.15672684,84.567,84.532,10.6488]
[1771606704645,25.94619837,84.57,84.532,10.6488]
[1771606704948,8.15893251,84.569,84.532,10.6488]
[1771606705250,22.36404161,84.566,84.52,3.58215676]
[1771606705443,25.94619837,84.55,84.503,21.38704853]
[1771606705944,22.36404161,84.539,84.472,21.38704853]
[1771606706138,2.05878786,84.588,84.501,21.38704853]
[1771606706139,3.58215676,84.55,84.501,21.38704853]
[1771606706343,22.36404161,84.552,84.501,21.38704853]
[1771606706540,3.58215676,84.55,84.501,21.38704853]
[1771606706850,25.94619837,84.55,84.501,21.38704853]
[1771606707252,25.94619837,84.55,84.508,10.6519]
[1771606709058,25.94619837,84.54,84.499,10.6531]
[1771606709248,22.36404161,84.519,84.47,24.96920529]
[1771606709647,22.36404161,84.519,84.481,10.6554]
[1771606709847,22.36404161,84.519,84.47,24.96920529]
[1771606710058,22.36404161,84.519,84.47,21.38704853]
[1771606710249,33.01464161,84.519,84.472,10.6564]
[1771606710645,3.58215676,84.5,84.456,21.38704853]
[1771606710851,22.36404161,84.509,84.463,10.6575]
[1771606711351,33.01634161,84.506,84.456,21.38704853]
[1771606711557,3.58215676,84.5,84.456,21.38704853]
[1771606711951,3.58215676,84.49,84.443,21.38704853]
[1771606712651,25.94619837,84.5,84.455,10.6585]
[1771606712955,22.36404161,84.479,84.417,21.38704853]
[1771606713253,3.58215676,84.45,84.402,21.38704853]
[1771606713457,30.47848027,84.477,84.421,21.38704853]
[1771606713655,22.36404161,84.491,84.441,21.38704853]
[1771606713956,3.58215676,84.5,84.441,21.38704853]
[1771606714152,3.58215676,84.5,84.451,21.38704853]
[1771606714347,22.36404161,84.505,84.451,21.38704853]
[1771606714348,3.58215676,84.49,84.451,21.38704853]
[1771606714954,3.58215676,84.49,84.453,10.6588]
[1771606715548,3.58215676,84.51,84.461,21.38704853]
[1771606715748,8.11000235,84.509,84.461,21.38704853]
[1771606715948,3.58215676,84.49,84.441,21.38704853]
[1771606716148,3.58215676,84.49,84.45,21.38704853]
[1771606716358,3.58215676,84.5,84.45,21.38704853]
[1771606716549,3.58215676,84.49,84.45,21.38704853]
[1771606716755,3.58215676,84.49,84.436,21.38704853]
[1771606717055,3.58215676,84.49,84.446,10.6597]
[1771606718654,3.58215676,84.49,84.447,19.99681065]
[1771606718856,3.58215676,84.49,84.449,10.6593]
[1771606719566,3.58215676,84.5,84.459,19.99681065]
[1771606721570,3.58215676,84.5,84.463,10.6576]
[1771606721964,3.58215676,84.5,84.459,19.99681065]
[1771606724267,3.58215676,84.5,84.46,10.658]
[1771606725075,3.58215676,84.5,84.46,30.65481065]
[1771606725270,3.58215676,84.5,84.462,10.6577]
[1771606725674,3.58215676,84.51,84.463,19.99681065]
[1771606725870,19.88987718,84.524,84.483,30.65191065]
[1771606726875,3.58215676,84.52,84.483,30.65191065]
[1771606727176,3.58215676,84.5,84.454,19.99681065]
[1771606727474,19.88987718,84.509,84.454,19.99681065]
[1771606728472,19.88987718,84.509,84.464,10.6575]
[1771606728973,3.58215676,84.5,84.464,10.6575]
[1771606730475,19.88987718,84.509,84.472,10.6564]
[1771606730870,3.58215676,84.5,84.454,19.99681065]
[1771606731071,3.58215676,84.5,84.464,10.6574]
[1771606732376,30.54167718,84.509,84.414,21.3275]
[1771606732377,19.88987718,84.509,84.47,10.6567]
[1771606733378,19.88987718,84.509,84.465,19.99681065]
[1771606733976,10.652,84.508,84.465,19.99681065]
[1771606734281,19.88987718,84.523,84.481,19.99681065]
[1771606736677,19.88987718,84.523,84.483,10.6551]
[1771606736979,19.88987718,84.539,84.491,19.99681065]
[1771606737275,19.88987718,84.555,84.517,10.6507]
[1771606737579,10.6456,84.559,84.517,10.6507]
[1771606737783,10.6456,84.559,84.515,19.99681065]
[1771606738481,10.6464,84.553,84.515,19.99681065]
[1771606738876,294.0,84.631,84.521,19.99681065]
[1771606739082,3.58215676,84.62,84.575,10.6434]
[1771606739276,3.58215676,84.62,84.57,3.58215676]
[1771606739277,45.35655783,84.62,84.57,3.58215676]
[1771606739584,41.77440107,84.599,84.554,10.6461]
[1771606739976,41.77440107,84.599,84.55,3.58215676]
[1771606741177,3.58215676,84.61,84.56,3.58215676]
[1771606741382,41.91601379,84.614,84.57,3.58215676]
[1771606742287,41.91658831,84.629,84.57,3.58215676]
[1771606742483,41.91658831,84.619,84.541,11.56477637]
[1771606742787,41.91658831,84.619,84.57,3.58215676]
[1771606743278,41.91658831,84.619,84.572,10.6439]
[1771606744083,44.88099175,84.61,84.563,10.645]
[1771606744774,44.88099175,84.61,84.571,10.644]
[1771606747180,44.88099175,84.61,84.541,11.55050596]
[1771606747384,44.88099175,84.61,84.527,462.82718641]
[1771606747385,41.49637631,84.599,84.56,10.6454]
[1771606747679,41.49637631,84.599,84.531,12.04532774]
[1771606747887,41.49681334,84.589,84.54,3.58215676]
[1771606748285,41.49681334,84.589,84.53,3.58215676]
[1771606748687,41.49681334,84.589,84.55,10.6466]
[1771606750992,45.17428467,84.58,84.54,10.6478]
[1771606751991,45.17210633,84.58,84.54,10.6478]
[1771606752791,41.59275845,84.63,84.57,3.57997842]
[1771606752992,41.24933246,84.619,84.57,3.57997842]
[1771606753387,44.82931088,84.59,84.54,3.57997842]
[1771606753893,44.82931088,84.59,84.554,10.6461]
[1771606754190,44.82931088,84.59,84.54,3.57997842]
[1771606754392,44.82931088,84.59,84.544,10.6474]
[1771606754792,44.82931088,84.59,84.54,3.57997842]
[1771606755696,44.82931088,84.59,84.53,3.57997842]
[1771606755889,41.24933246,84.59,84.527,462.82718641]
[1771606756089,40.77853206,84.584,84.527,462.82718641]
[1771606756487,40.77853206,84.612,84.527,462.82718641]
[1771606756685,50.89348194,84.628,84.56,9.58779975]
[1771606756887,50.89348194,84.628,84.529,21.2986]
[1771606757084,50.89348194,84.628,84.55,9.58779975]
[1771606757291,50.91232349,84.616,84.567,10.6445]
[1771606757997,9.58779975,84.66,84.557,10.6457]
[1771606757998,50.91354079,84.613,84.557,10.6457]
[1771606758592,50.91354079,84.613,84.53,9.58779975]
[1771606759393,51.15453615,84.611,84.556,10.6459]
[1771606759885,10.6404,84.6,84.547,10.647]
[1771606760089,51.15560709,84.599,84.547,10.647]
[1771606760992,51.30920902,84.597,84.536,10.6483]
[1771606762698,51.31018168,84.589,84.536,10.6483]
[1771606763798,51.31018168,84.589,84.544,10.6473]
[1771606764402,51.31666023,84.587,84.527,462.82718641]
[1771606765393,8.07124982,84.631,84.53,9.58779975]
[1771606765599,56.65965891,84.63,84.57,9.58779975]
[1771606765903,56.65965891,84.63,84.55,9.58779975]
[1771606766599,56.65965891,84.63,84.54,21.2959]
[1771606766901,56.65965891,84.63,84.55,9.58779975]
[1771606767099,56.65965891,84.63,84.574,10.6436]
[1771606767902,56.81300433,84.628,84.574,10.6436]
[1771606768798,56.81300433,84.628,84.588,10.6418]
[1771606769901,2.05678621,84.678,84.55,9.58779975]
[1771606769902,56.85150221,84.641,84.597,10.6407]
[1771606770200,56.85156518,84.665,84.61,9.58779975]
[1771606770406,56.85156518,84.665,84.59,9.58779975]
[1771606770701,56.85156518,84.665,84.57,9.58779975]
[1771606770905,9.58779975,84.65,84.527,462.82718641]
[1771606771098,56.88328289,84.663,84.601,10.6402]
[1771606771705,66.47108264,84.66,84.59,10.6415]
[1771606771900,56.88328289,84.66,84.59,9.58779975]
[1771606772508,66.47108264,84.66,84.57,9.58779975]
[1771606772806,6.297e-05,84.665,84.59,9.58779975]
[1771606773102,6.297e-05,84.665,84.6,62.0]
[1771606773311,6.297e-05,84.665,84.61,9.58779975]
[1771606773700,6.297e-05,84.665,84.628,10.6368]
[1771606775005,6.297e-05,84.665,84.57,9.58779975]
[1771606775511,56.88022798,84.662,84.602,10.6401]
[1771606775809,56.88022798,84.662,84.57,9.58779975]
[1771606776601,56.88061679,84.651,84.591,10.6414]
[1771606776816,56.95164578,84.619,84.52,9.58779975]
[1771606777002,9.58779975,84.66,84.48,175.34019975]
[1771606777003,56.95164578,84.599,84.5,9.58779975]
[1771606777199,56.95164578,84.597,84.538,10.6481]
[1771606777402,56.95164578,84.597,84.5,9.58779975]
[1771606777905,56.95068211,84.619,84.52,9.58779975]
[1771606778111,56.95068211,84.619,84.53,62.0]
[1771606778303,9.58779975,84.62,84.52,9.58779975]
[1771606778304,56.95068211,84.602,84.537,10.6482]
[1771606778503,56.95068211,84.599,84.5,21.28362957]
[1771606778703,9.58779975,84.56,84.47,9.58779975]
[1771606779005,56.81834126,84.547,84.446,14.53360777]
[1771606779203,56.81834126,84.519,84.44,9.58779975]
[1771606779411,56.81834126,84.519,84.42,9.58779975]
[1771606779608,56.81834126,84.519,84.44,9.58779975]
[1771606780009,56.81834126,84.519,84.44,21.1462455]
[1771606780203,56.81873196,84.548,84.46,9.58779975]
[1771606781309,56.81873196,84.548,84.47,62.0]
[1771606781700,56.81873196,84.548,84.486,10.6547]
[1771606782104,56.81873196,84.548,84.45,9.58779975]
[1771606782505,56.69464904,84.529,84.43,9.58779975]
[1771606783003,56.69464904,84.529,84.465,10.6574]
[1771606783200,56.69464904,84.529,84.43,9.58779975]
[1771606784013,56.61447085,84.527,84.43,9.58779975]
[1771606784508,67.26417085,84.527,84.461,10.6579]
[1771606784810,56.61447085,84.527,84.45,9.58779975]
[1771606785012,56.61447085,84.527,84.45,71.58779975]
[1771606785312,56.61447085,84.527,84.47,10.6567]
[1771606786216,56.61447085,84.527,84.459,10.658]
[1771606787003,56.61447085,84.527,84.47,10.6567]
[1771606787512,56.99775104,84.559,84.45,9.58779975]
[1771606787708,56.99775104,84.557,84.45,9.58779975]
[1771606788807,56.99807885,84.547,84.484,10.6549]
[1771606789316,57.18637471,84.539,84.45,9.58779975]
[1771606789708,57.18637471,84.537,84.482,10.6552]
[1771606789911,57.18637471,84.537,84.46,62.0]
[1771606790213,57.18665853,84.522,84.43,9.58779975]
[1771606790811,57.26018604,84.52,84.455,10.6586]
[1771606791009,66.84798579,84.52,84.455,10.6586]
[1771606791818,66.84798579,84.52,84.43,9.58779975]
[1771606792011,57.26018604,84.52,84.43,9.58779975]
[1771606792214,57.26018604,84.52,84.415,165.8786]
[1771606792517,57.26018604,84.52,84.467,10.657]
[1771606793610,57.26018604,84.52,84.477,10.6558]
[1771606794015,57.26018604,84.52,84.45,62.0]
[1771606794209,66.84798579,84.52,84.424,11.66400525]
[1771606794412,66.84798579,84.52,84.36,9.58779975]
[1771606794413,57.39896545,84.499,84.4,9.58779975]
[1771606794614,9.58779975,84.5,84.41,9.58779975]
[1771606795516,9.58779975,84.5,84.432,10.6615]
[1771606795917,9.58779975,84.5,84.416,11.75012248]
[1771606796117,9.58779975,84.5,84.41,9.58779975]
[1771606796314,9.58779975,84.5,84.443,10.6601]
[1771606796719,48.48829296,84.499,84.443,10.6601]
[1771606797316,48.44879929,84.494,84.434,10.6613]